bitfinex-derivatives/quotes_SOLF0:USTF0_20250818
["timestamp","ask_amount","ask_price","bid_price","bid_amount"]
[1755536031432,0.03586028,181.86,181.76,7.0574058]
[1755536031731,0.03586028,181.86,181.85,2.99]
[1755536032122,0.03586028,181.86,181.85,8.4858]
[1755536033424,2.92,181.93,181.89,5.4945]
[1755536033625,369.2,181.98,181.89,5.4945]
[1755536033626,2.92,181.97,181.9,2.95]
[1755536033822,369.2,181.98,181.89,5.4945]
[1755536033823,2.92,181.95,181.89,5.4945]
[1755536034023,2.92,181.95,181.88,5.4948]
[1755536034329,369.2,181.98,181.76,0.95716152]
[1755536034330,2.92,181.93,181.82,2.95]
[1755536034527,3.97193993,181.92,181.82,2.95]
[1755536034733,6.89193993,181.91,181.82,2.95]
[1755536034922,2.92,181.93,181.86,0.04233476]
[1755536035122,2.92,181.91,181.86,0.04233476]
[1755536035322,2.92,181.88,181.86,0.04233476]
[1755536035530,2.92,181.87,181.86,0.04233476]
[1755536036220,2.92,181.93,181.86,0.04233476]
[1755536036421,2.92,181.91,181.86,0.04233476]
[1755536036627,2.92,181.88,181.86,0.04233476]
[1755536037629,139.36,181.89,181.86,0.04233476]
[1755536037842,139.36,181.89,181.86,2.99233476]
[1755536038135,142.28,181.89,181.86,0.04233476]
[1755536038336,139.36,181.89,181.86,0.04233476]
[1755536038529,2.92,181.92,181.86,0.04233476]
[1755536038730,2.92,181.89,181.86,0.04233476]
[1755536039637,2.92,181.95,181.86,2.99233476]
[1755536039937,2.92,181.93,181.86,0.04233476]
[1755536040132,2.92,181.91,181.86,0.04233476]
[1755536040332,159.73862379,181.94,181.83,2.95]
[1755536040333,2.92,181.93,181.83,2.95]
[1755536040533,2.92,181.91,181.84,5.4961]
[1755536040730,142.28,181.9,181.87,0.0363317]
[1755536040928,2.92,181.9,181.87,0.0363317]
[1755536041435,142.26,181.9,181.87,0.0363317]
[1755536041940,2.92,181.93,181.87,0.0363317]
[1755536042241,2.92,181.89,181.87,0.0363317]
[1755536042539,2.92,181.91,181.87,0.0363317]
[1755536042732,139.34,181.9,181.87,0.0363317]
[1755536042932,139.34,181.91,181.88,2.95]
[1755536043334,2.92,181.9,181.87,0.0363317]
[1755536043535,2.92,181.88,181.87,0.0363317]
[1755536044034,142.26,181.91,181.87,2.9863317]
[1755536044435,2.92,181.9,181.87,0.0363317]
[1755536044938,2.92,181.89,181.87,0.0363317]
[1755536045238,142.26,181.89,181.87,0.0363317]
[1755536045436,2.92,181.88,181.87,0.0363317]
[1755536045640,2.92,181.91,181.87,2.9863317]
[1755536045833,139.32,181.9,181.87,2.9863317]
[1755536046639,139.32,181.9,181.87,0.0363317]
[1755536046838,139.32,181.9,181.87,2.9863317]
[1755536047041,2.92,181.94,181.88,2.95]
[1755536047251,46.82,181.94,181.88,2.95]
[1755536047434,139.32,181.94,181.88,2.95]
[1755536048138,139.32,181.94,181.89,5.4944]
[1755536048344,139.32,181.94,181.88,2.95]
[1755536048732,139.32,181.94,181.9,5.4941]
[1755536048936,139.32,181.95,181.91,2.95]
[1755536049138,139.32,181.95,181.9,5.4941]
[1755536049439,139.32,181.95,181.92,2.95]
[1755536049836,139.32,181.95,181.91,0.03579771]
[1755536050040,2.92,182.02,181.92,2.95]
[1755536050243,143.28227145,182.01,181.92,2.95]
[1755536050433,139.3,182.01,181.92,2.95]
[1755536050844,139.3,182.01,181.95,0.03916643]
[1755536051447,139.3,182.01,181.95,2.98916643]
[1755536051845,142.22,182.01,181.96,8.4424]
[1755536052048,139.3,182.01,181.98,2.95]
[1755536052246,6.79862379,182.04,181.98,2.95]
[1755536052542,6.89825491,182.03,181.98,2.95]
[1755536052745,139.28,182.02,181.98,2.95]
[1755536052936,139.28,182.02,181.99,0.03865541]
[1755536053141,2.92,182.02,181.99,0.03865541]
[1755536053338,139.28,182.01,181.99,0.03865541]
[1755536053741,2.92,182.02,181.99,0.03865541]
[1755536053941,142.2,182.02,181.99,0.03865541]
[1755536054148,2.92,182.0,181.99,0.03865541]
[1755536054648,142.2,182.02,181.99,0.03865541]
[1755536054846,2.92,182.0,181.99,0.03865541]
[1755536055544,142.2,182.02,181.99,0.03865541]
[1755536056450,139.28,182.02,182.0,2.95]
[1755536057351,139.28,182.02,181.99,0.03865541]
[1755536057554,139.28,182.02,182.01,2.95]
[1755536058054,139.28,182.02,181.99,2.98865541]
[1755536058354,139.28,182.02,181.99,0.03865541]
[1755536058548,139.28,182.02,182.0,2.95]
[1755536059849,139.28,182.02,182.01,2.95]
[1755536061856,139.28,182.02,181.99,2.98865541]
[1755536064758,139.28,182.02,181.99,5.53025541]
[1755536064955,139.28,182.02,182.0,2.9]
[1755536066664,139.28,182.02,182.01,2.9]
[1755536067369,139.28,182.02,181.99,0.03865541]
[1755536067668,142.37,182.02,181.99,0.03865541]
[1755536070169,142.37,182.02,181.99,5.53025541]
[1755536070374,139.28,182.02,181.99,0.03865541]
[1755536070667,3.09,182.06,182.02,2.9]
[1755536070860,142.19,182.06,182.02,2.9]
[1755536071060,139.1,182.06,182.02,2.9]
[1755536071272,3.09,182.05,182.0,3.87862379]
[1755536071462,139.1,182.06,182.0,3.87862379]
[1755536071663,142.19,182.06,182.0,3.87862379]
[1755536072262,142.19,182.06,182.01,8.391]
[1755536072263,3.09,182.05,182.01,8.391]
[1755536072458,139.1,182.06,182.01,2.9]
[1755536072670,139.08,182.07,182.01,2.9]
[1755536073268,139.08,182.07,182.04,5.49]
[1755536073565,139.08,182.07,182.02,0.04076651]
[1755536073772,3.09,182.05,182.02,0.04076651]
[1755536074467,3.09,182.04,182.02,0.04076651]
[1755536074663,139.08,182.07,182.02,0.04076651]
[1755536074864,3.09,182.06,182.02,8.43126651]
[1755536075666,139.08,182.07,182.03,8.3904]
[1755536075967,3.09,182.06,182.03,2.9]
[1755536076268,3.09,182.05,182.02,5.53136651]
[1755536076468,142.17,182.07,182.02,2.94076651]
[1755536076669,142.17,182.07,182.02,0.04076651]
[1755536076874,142.17,182.07,182.04,2.9]
[1755536077265,142.17,182.07,182.02,0.04076651]
[1755536077266,139.08,182.07,182.02,0.04076651]
[1755536077467,139.08,182.07,182.05,8.3896]
[1755536077875,3.09,182.06,182.02,0.04076651]
[1755536078168,139.08,182.07,182.02,0.04076651]
[1755536078371,3.09,182.03,182.02,0.04076651]
[1755536078565,142.11,182.03,182.02,0.04076651]
[1755536078766,3.09,182.06,182.02,0.04076651]
[1755536078966,139.02,182.05,182.02,0.04076651]
[1755536079172,3.09,182.04,182.02,0.04076651]
[1755536079371,3.09,182.03,182.02,0.04076651]
[1755536080371,139.02,182.05,182.02,0.04076651]
[1755536080578,139.02,182.05,182.03,2.9]
[1755536080978,139.02,182.05,182.04,5.4902]
[1755536081172,139.02,182.05,182.02,0.04076651]
[1755536081675,3.09,182.04,182.02,5.53126651]
[1755536081874,139.02,182.05,182.02,2.94076651]
[1755536082070,142.11,182.05,182.02,2.94076651]
[1755536082273,142.11,182.05,182.02,8.43136651]
[1755536082472,139.02,182.05,182.02,2.94076651]
[1755536082673,139.02,182.05,182.03,2.9]
[1755536083471,139.02,182.05,182.03,8.3904]
[1755536083877,139.02,182.05,182.03,5.4904]
[1755536084278,139.02,182.05,182.02,5.53146651]
[1755536086376,139.02,182.05,182.02,0.04076651]
[1755536086580,139.02,182.05,182.03,5.4904]
[1755536086774,3.09,182.04,182.02,0.04076651]
[1755536087174,3.09,182.03,182.02,0.04076651]
[1755536088182,139.02,182.05,182.02,0.04076651]
[1755536088370,3.09,182.07,182.02,2.94076651]
[1755536088575,138.94,182.06,182.02,2.94076651]
[1755536088777,142.03,182.06,182.02,2.94076651]
[1755536088974,138.94,182.06,182.02,2.94076651]
[1755536089284,3.09,182.05,182.02,2.94076651]
[1755536089478,3.09,182.05,182.02,0.04076651]
[1755536089678,3.09,182.03,182.02,0.04076651]
[1755536090679,7.08121368,182.03,182.02,0.04076651]
[1755536093771,49.83,182.08,182.02,0.04076651]
[1755536093973,3.01,182.06,182.02,0.04076651]
[1755536094173,142.90150196,182.07,182.02,0.04076651]
[1755536094174,3.01,182.04,182.02,0.04076651]
[1755536094381,145.91362124,182.03,182.02,0.04076651]
[1755536094778,142.90362124,182.03,182.02,0.04076651]
[1755536095085,145.91362124,182.03,182.02,0.04076651]
[1755536095685,142.90362124,182.03,182.02,0.04076651]
[1755536095882,138.9,182.03,182.02,0.04076651]
[1755536096776,138.88,182.04,182.02,0.04076651]
[1755536097081,138.88,182.04,182.02,2.98076651]
[1755536097386,138.88,182.04,182.02,0.04076651]
[1755536097683,138.88,182.04,182.03,2.94]
[1755536097986,142.88497336,182.04,182.03,2.94]
[1755536098381,138.88,182.04,182.03,2.94]
[1755536098782,138.88,182.04,182.03,8.4305]
[1755536098985,138.88,182.04,182.03,2.94]
[1755536100382,138.88,182.04,182.02,5.53146651]
[1755536100581,138.88,182.04,182.02,8.47146651]
[1755536100881,141.89,182.04,182.02,0.04076651]
[1755536101383,138.88,182.04,182.02,0.04076651]
[1755536101581,49.83,182.11,182.03,6.81862379]
[1755536101784,142.8486323,182.1,182.04,2.94]
[1755536101980,4.0086323,182.09,182.04,2.94]
[1755536102178,4.0086323,182.09,182.03,3.87862379]
[1755536102379,138.84,182.1,182.06,8.4294]
[1755536102690,138.84,182.1,182.07,2.94]
[1755536102883,369.1,182.15,182.09,2.94]
[1755536103188,145.86034926,182.14,182.1,2.94]
[1755536103385,141.85,182.14,182.1,2.94]
[1755536103587,141.85,182.14,182.1,2.98056594]
[1755536103985,4.00729771,182.13,182.1,0.04056594]
[1755536104182,3.01,182.11,182.1,0.04056594]
[1755536104383,7.01695819,182.11,182.1,0.04056594]
[1755536109490,4.00695819,182.11,182.1,0.04056594]
[1755536109685,7.01695819,182.13,182.1,0.04056594]
[1755536109890,7.01695819,182.12,182.1,0.04056594]
[1755536110087,7.01695819,182.11,182.1,0.04056594]
[1755536111585,145.75695819,182.11,182.1,0.04056594]
[1755536112187,7.01695819,182.11,182.1,0.04056594]
[1755536112387,145.75695819,182.11,182.1,0.04056594]
[1755536114593,3.01,182.1,182.03,2.94]
[1755536114792,4.00695819,182.09,182.03,2.94]
[1755536114995,3.01,182.07,182.03,2.94]
[1755536115794,138.72,182.08,182.0,3.87862379]
[1755536115993,4.00727951,182.07,182.01,2.94]
[1755536116188,138.72,182.08,182.01,2.94]
[1755536116388,4.00618351,182.07,182.01,2.94]
[1755536116692,138.72,182.08,182.05,8.4298]
[1755536116888,4.00695504,182.07,182.05,2.94]
[1755536117187,138.72,182.08,182.05,2.94]
[1755536117394,4.00598248,182.07,182.05,2.94]
[1755536117590,138.72,182.08,182.05,2.94]
[1755536117785,138.72,182.08,182.0,3.87862379]
[1755536117991,138.72,182.08,182.01,2.94]
[1755536118391,138.72,182.08,182.05,8.4298]
[1755536118998,138.72,182.08,182.06,2.94]
[1755536119199,138.72,182.08,182.07,2.94]
[1755536119792,138.72,182.08,182.07,8.4293]
[1755536122997,49.83,182.14,182.07,3.05]
[1755536123202,142.66969494,182.13,182.07,3.05]
[1755536123400,4.00969494,182.12,182.06,3.87862379]
[1755536123598,138.66,182.13,182.06,3.87862379]
[1755536123801,4.00783766,182.12,182.06,3.87862379]
[1755536124105,141.68,182.13,182.09,5.4885]
[1755536124295,4.00824762,182.12,182.09,8.5385]
[1755536124495,141.68,182.13,182.09,8.5385]
[1755536124692,4.00783128,182.12,182.1,8.5383]
[1755536124903,138.66,182.13,182.1,8.5383]
[1755536125104,4.00728559,182.12,182.1,8.5383]
[1755536125292,138.66,182.13,182.1,8.5383]
[1755536125601,4.0071967,182.12,182.1,8.5383]
[1755536125897,138.66,182.13,182.11,8.5381]
[1755536126589,138.66,182.13,182.1,5.4883]
[1755536126800,141.68,182.13,182.08,3.05]
[1755536127100,141.68,182.13,182.09,8.5385]
[1755536128201,141.68,182.13,182.1,5.4884]
[1755536128398,138.66,182.13,182.1,5.4884]
[1755536128603,138.66,182.13,182.11,3.05]
[1755536128904,138.66,182.13,182.12,3.05]
[1755536129101,138.66,182.13,182.07,3.05]
[1755536129604,138.66,182.13,182.1,8.5383]
[1755536130905,138.66,182.13,182.09,5.4886]
[1755536131399,138.66,182.13,182.1,5.4883]
[1755536131400,141.68,182.13,182.1,5.4883]
[1755536131602,3.02,182.17,182.1,3.05]
[1755536131800,138.56,182.16,182.1,3.05]
[1755536131997,141.58,182.16,182.12,8.5375]
[1755536132194,141.58,182.16,182.12,3.05]
[1755536132898,3.02,182.15,182.09,3.87862379]
[1755536133492,3.02,182.14,182.09,3.87862379]
[1755536133698,138.54,182.13,182.09,6.92862379]
[1755536133897,138.54,182.13,182.09,12.41712379]
[1755536134105,138.54,182.13,182.02,10.9813]
[1755536134106,3.02,182.12,182.06,3.87862379]
[1755536134297,3.02,182.12,182.05,3.05]
[1755536134501,3.02,182.12,182.05,8.5399]
[1755536134700,3.02,182.12,182.05,3.05]
[1755536135297,3.02,182.12,182.03,3.87862379]
[1755536136005,3.98992933,182.11,182.04,5.4901]
[1755536136193,3.02,182.12,182.04,5.4901]
[1755536136400,3.02,182.1,182.02,3.05]
[1755536136598,3.02,182.08,182.02,3.05]
[1755536137002,3.02,182.08,182.02,8.5408]
[1755536137203,3.02,182.08,182.02,3.05]
[1755536137600,3.02,182.08,182.03,8.5403]
[1755536138108,138.52,182.09,182.06,3.05]
[1755536138408,138.5,182.11,182.08,3.05]
[1755536138906,138.5,182.11,182.07,3.05]
[1755536139205,141.52,182.11,182.07,3.05]
[1755536139806,138.5,182.11,182.07,3.05]
[1755536140009,138.5,182.11,182.08,3.05]
[1755536140210,138.5,182.11,182.09,5.4884]
[1755536140410,138.5,182.11,182.09,8.5384]
[1755536141798,3.02,182.1,182.06,3.87862379]
[1755536142005,3.02,182.1,182.03,6.92862379]
[1755536142209,3.02,182.1,182.05,5.4898]
[1755536142406,3.02,182.07,182.03,3.05]
[1755536142806,138.48,182.06,182.03,8.5403]
[1755536144710,3.02,182.12,182.04,3.05]
[1755536144910,4.0083375,182.11,182.06,3.05]
[1755536145215,368.94,182.17,182.09,3.05]
[1755536145415,141.48,182.16,182.12,3.05]
[1755536145907,138.46,182.16,182.11,3.87862379]
[1755536146108,3.02,182.14,182.09,3.05]
[1755536146902,3.02,182.14,182.08,3.87862379]
[1755536147108,3.02,182.14,182.11,5.4879]
[1755536147308,3.02,182.14,182.1,3.05]
[1755536147508,3.02,182.14,182.08,3.87862379]
[1755536147509,138.46,182.16,182.11,3.05]
[1755536147710,141.48,182.16,182.12,5.4877]
[1755536147904,3.02,182.15,182.11,3.05]
[1755536148418,3.02,182.15,182.11,8.538]
[1755536148717,3.02,182.15,182.11,3.05]
[1755536148917,138.46,182.16,182.13,5.4874]
[1755536149213,138.46,182.16,182.12,3.05]
[1755536149518,138.46,182.16,182.14,3.05]
[1755536149718,141.48,182.16,182.11,3.87862379]
[1755536149916,141.48,182.16,182.11,6.92862379]
[1755536150818,141.48,182.16,182.13,5.4875]
[1755536151617,3.02,182.15,182.11,6.92862379]
[1755536151819,138.46,182.16,182.11,3.87862379]
[1755536152019,141.48,182.16,182.11,6.92862379]
[1755536152221,3.18,182.15,182.11,6.92862379]
[1755536152613,3.18,182.15,182.11,12.41652379]
[1755536153719,138.46,182.16,182.12,3.07]
[1755536154020,138.46,182.16,182.13,3.07]
[1755536154322,138.46,182.16,182.14,5.4872]
[1755536154522,138.46,182.16,182.15,3.07]
[1755536155114,138.46,182.16,182.13,3.07]
[1755536155721,138.46,182.16,182.14,5.4871]
[1755536158122,138.46,182.16,182.13,3.07]
[1755536159916,138.46,182.16,182.14,5.4872]
[1755536160112,3.18,182.24,182.14,3.87862379]
[1755536160320,4.0010688,182.23,182.15,3.07]
[1755536160518,138.3,182.22,182.15,3.07]
[1755536160727,3.18,182.21,182.17,5.4863]
[1755536161120,3.18,182.2,182.16,5.4866]
[1755536161316,138.3,182.19,182.16,3.07]
[1755536161925,138.3,182.19,182.17,5.4861]
[1755536163018,141.48,182.19,182.17,5.4861]
[1755536163428,141.48,182.19,182.14,3.87862379]
[1755536163429,3.18,182.18,182.14,3.87862379]
[1755536163626,3.18,182.17,182.12,3.07]
[1755536164022,3.18,182.18,182.09,3.87862379]
[1755536164230,3.18,182.18,182.08,3.07]
[1755536164533,3.99267186,182.17,182.09,5.4886]
[1755536164730,3.18,182.16,182.09,5.4886]
[1755536164925,138.26,182.15,182.09,5.4886]
[1755536165721,138.26,182.15,182.11,3.07]
[1755536165933,138.26,182.14,182.11,3.07]
[1755536166326,138.26,182.14,182.11,8.5579]
[1755536166730,138.26,182.14,182.11,3.07]
[1755536166923,3.18,182.18,182.12,3.07]
[1755536167127,138.24,182.17,182.12,3.87862379]
[1755536167330,3.18,182.16,182.12,5.4877]
[1755536167624,3.18,182.16,182.09,6.94862379]
[1755536168027,138.24,182.17,182.09,6.94862379]
[1755536168631,138.24,182.17,182.14,5.4873]
[1755536168938,141.42,182.17,182.14,5.4873]
[1755536169236,3.18,182.16,182.13,5.4874]
[1755536169436,3.18,182.16,182.09,6.94862379]
[1755536169823,138.24,182.17,182.14,5.4871]
[1755536170027,138.24,182.17,182.11,3.07]
[1755536170433,138.24,182.17,182.14,5.487]
[1755536170634,138.24,182.17,182.11,3.07]
[1755536171034,138.24,182.17,182.12,3.87862379]
[1755536171331,138.24,182.17,182.13,3.07]
[1755536171535,138.24,182.17,182.14,3.07]
[1755536171738,138.24,182.17,182.15,5.4868]
[1755536172131,138.24,182.17,182.14,3.07]
[1755536172340,138.24,182.17,182.16,5.4867]
[1755536174042,138.24,182.17,182.15,5.4868]
[1755536174540,3.18,182.16,182.14,5.4872]
[1755536178150,0.04132592,182.17,182.16,3.07]
[1755536178448,0.04132592,182.17,182.15,3.87862379]
[1755536178841,0.04132592,182.17,182.16,5.4867]
[1755536179344,0.04132592,182.17,182.16,8.5567]
[1755536180039,0.04132592,182.17,182.16,5.4867]
[1755536180248,0.04132592,182.17,182.16,8.5567]
[1755536180548,3.22132592,182.17,182.16,5.4867]
[1755536180744,0.04132592,182.17,182.16,8.5567]
[1755536181650,138.14,182.21,182.2,5.4855]
[1755536181942,3.18,182.24,182.2,3.07]
[1755536182152,368.88,182.27,182.21,6.78862379]
[1755536182536,141.17,182.28,182.21,6.78862379]
[1755536182950,141.17,182.28,182.22,0.04204174]
[1755536184143,138.12,182.28,182.22,0.04204174]
[1755536184344,3.05,182.27,182.22,0.04204174]
[1755536184541,3.05,182.26,182.22,0.04204174]
[1755536184750,3.05,182.24,182.22,0.04204174]
[1755536186046,3.05,182.26,182.22,0.04204174]
[1755536186245,138.12,182.28,182.22,0.04204174]
[1755536186447,10.93080381,182.27,182.22,0.04204174]
[1755536186646,3.05,182.25,182.22,0.04204174]
[1755536186851,3.05,182.23,182.22,0.04204174]
[1755536187654,3.05,182.29,182.22,0.04204174]
[1755536187857,138.06,182.24,182.22,0.04204174]
[1755536188151,138.06,182.24,182.23,5.4846]
[1755536188652,138.06,182.28,182.22,0.04204174]
[1755536189355,4.00708073,182.27,182.22,0.04204174]
[1755536189551,3.05,182.27,182.22,0.04204174]
[1755536189755,141.11,182.28,182.22,0.04204174]
[1755536189956,4.00632749,182.27,182.22,0.04204174]
[1755536190156,3.05,182.27,182.22,0.04204174]
[1755536190356,3.05,182.26,182.22,0.04204174]
[1755536190951,138.06,182.28,182.22,0.04204174]
[1755536191151,3.05,182.25,182.22,0.04204174]
[1755536191354,3.05,182.27,182.22,0.04204174]
[1755536191550,3.05,182.25,182.22,0.04204174]
[1755536191755,141.93862379,182.28,182.22,0.04204174]
[1755536191957,4.00167178,182.27,182.22,0.04204174]
[1755536192158,4.00167178,182.26,182.22,0.04204174]
[1755536192356,3.05,182.23,182.22,0.04204174]
[1755536193560,3.05,182.27,182.22,0.04204174]
[1755536193760,4.00171174,182.26,182.22,0.04204174]
[1755536194060,7.05171174,182.25,182.22,0.04204174]
[1755536194261,3.05,182.25,182.22,0.04204174]
[1755536194658,138.06,182.28,182.22,0.04204174]
[1755536194861,3.05,182.26,182.22,0.04204174]
[1755536195665,3.05,182.26,182.22,2.95204174]
[1755536195861,3.05,182.27,182.22,0.04204174]
[1755536196062,3.05,182.25,182.22,0.04204174]
[1755536196267,138.06,182.28,182.22,0.04204174]
[1755536196268,3.05,182.24,182.22,0.04204174]
[1755536196568,138.06,182.28,182.22,0.04204174]
[1755536196770,3.05,182.26,182.22,2.95204174]
[1755536197769,138.06,182.28,182.22,0.04204174]
[1755536197770,3.05,182.25,182.22,0.04204174]
[1755536198156,3.05,182.27,182.22,0.04204174]
[1755536198356,3.05,182.24,182.22,0.04204174]
[1755536198568,7.05352142,182.23,182.22,0.04204174]
[1755536201568,137.94,182.2,182.13,2.91]
[1755536202973,137.94,182.2,182.13,6.78862379]
[1755536203270,137.94,182.2,182.14,2.91]
[1755536207381,137.94,182.2,182.14,8.3972]
[1755536208375,137.94,182.2,182.14,2.91]
[1755536208674,137.94,182.2,182.1,3.87862379]
[1755536208883,3.05,182.19,182.1,6.78862379]
[1755536210179,3.05,182.17,182.06,2.91]
[1755536210377,3.99406698,182.16,182.06,6.78862379]
[1755536210679,3.05,182.17,182.06,12.27812379]
[1755536210879,3.99416706,182.16,182.06,12.27812379]
[1755536211075,3.05,182.17,182.06,12.27812379]
[1755536211672,3.99413812,182.16,182.06,12.27812379]
[1755536211878,3.05,182.17,182.06,12.27812379]
[1755536212080,3.9900313,182.16,182.07,3.01]
[1755536212279,3.05,182.17,182.08,3.87862379]
[1755536213082,3.05,182.17,182.09,5.4888]
[1755536213384,3.05,182.17,182.08,3.87862379]
[1755536213983,3.05,182.17,182.08,6.88862379]
[1755536214684,3.98763487,182.16,182.08,6.88862379]
[1755536214983,3.03,182.16,182.08,6.88862379]
[1755536215380,3.03,182.16,182.05,3.87862379]
[1755536215576,3.98659349,182.15,182.05,3.87862379]
[1755536215777,3.98646891,182.14,182.02,3.87862379]
[1755536215978,3.03,182.12,182.02,3.87862379]
[1755536216180,3.03,182.12,182.0,3.01]
[1755536216382,3.03,182.12,182.02,3.01]
[1755536217184,3.03,182.12,182.02,8.5009]
[1755536217382,6.90862379,182.12,182.02,3.01]
[1755536217687,3.03,182.11,182.02,3.01]
[1755536220477,63.3,182.16,182.05,3.01]
[1755536220478,3.03,182.14,182.05,3.01]
[1755536220681,3.03,182.14,182.08,3.01]
[1755536221381,3.03,182.14,182.07,3.87862379]
[1755536222687,3.03,182.14,182.07,6.88862379]
[1755536224291,3.03,182.14,182.04,3.87862379]
[1755536224589,3.03,182.12,182.03,3.01]
[1755536227486,3.03,182.12,182.01,9.36962379]
[1755536227487,3.03,182.12,182.01,3.87862379]
[1755536228186,0.03491362,182.08,182.01,3.87862379]
[1755536229091,0.03491362,182.08,182.0,3.01]
[1755536231992,3.03,182.07,182.0,3.01]
[1755536239002,0.03491362,182.08,182.03,3.01]
[1755536239207,0.03491362,182.08,182.06,3.01]
[1755536239405,3.03,182.11,182.06,3.01]
[1755536239607,3.03,182.11,182.07,3.01]
[1755536239807,0.03677068,182.09,182.07,3.01]
[1755536240008,0.03677068,182.09,182.08,3.01]
[1755536240213,0.03677068,182.09,182.08,6.88862379]
[1755536240399,137.78,182.13,182.08,6.88862379]
[1755536240706,137.78,182.13,182.08,9.36752379]
[1755536240904,137.78,182.13,182.11,3.01]
[1755536242007,2.94,182.19,182.11,6.96862379]
[1755536242306,137.76,182.21,182.14,3.87862379]
[1755536242501,3.99373151,182.2,182.14,3.87862379]
[1755536242706,2.94,182.2,182.16,0.03842803]
[1755536243002,2.94,182.17,182.16,0.03842803]
[1755536244001,6.93477033,182.17,182.16,0.03842803]
[1755536245001,2.94,182.17,182.16,0.03842803]
[1755536245603,2.94,182.2,182.16,0.03842803]
[1755536245807,3.9953214,182.19,182.16,0.03842803]
[1755536246002,2.94,182.19,182.16,0.03842803]
[1755536246203,2.94,182.17,182.16,0.03842803]
[1755536249710,6.94157293,182.17,182.16,0.03842803]
[1755536250906,46.82,182.2,182.16,3.12842803]
[1755536251106,4.00326034,182.19,182.16,3.12842803]
[1755536251306,46.82,182.2,182.16,3.12842803]
[1755536251503,4.00421378,182.19,182.16,3.12842803]
[1755536251699,46.82,182.2,182.16,3.12842803]
[1755536251900,4.00401936,182.19,182.16,3.12842803]
[1755536252105,46.82,182.2,182.16,3.12842803]
[1755536252306,49.76,182.2,182.16,3.12842803]
[1755536254312,46.82,182.2,182.17,3.09]
[1755536254612,137.76,182.21,182.16,0.03842803]
[1755536254807,137.76,182.21,182.18,3.09]
[1755536255511,137.76,182.21,182.16,0.03842803]
[1755536255512,140.7,182.21,182.16,3.12842803]
[1755536256008,2.94,182.2,182.16,3.12842803]
[1755536256207,137.76,182.21,182.16,0.03842803]
[1755536256208,2.94,182.19,182.16,0.03842803]
[1755536256408,140.7,182.21,182.16,3.12842803]
[1755536256909,137.76,182.21,182.18,3.09]
[1755536259711,137.76,182.21,182.16,0.03842803]
[1755536259910,137.76,182.21,182.18,3.09]
[1755536260111,137.76,182.21,182.17,6.96862379]
[1755536260315,137.76,182.21,182.18,5.486]
[1755536260517,137.76,182.21,182.2,3.09]
[1755536260817,506.58,182.24,182.2,3.09]
[1755536261613,509.52,182.24,182.2,3.12795371]
[1755536263014,2.94,182.22,182.2,0.03795371]
[1755536263221,140.46,182.21,182.2,0.03795371]
[1755536263522,137.52,182.21,182.2,3.12795371]
[1755536263720,369.04,182.24,182.2,3.12795371]
[1755536263918,137.5,182.23,182.2,3.12795371]